bitfinex/quotes_BTCUSD_20220731
["timestamp","ask_amount","ask_price","bid_price","bid_amount"]
[1659277763933,1.11089533,23785.0,23784.0,5.01]
[1659277764161,0.80725733,23785.0,23784.0,5.01]
[1659277764405,0.45725733,23785.0,23784.0,6.01046493]
[1659277764635,0.40725733,23785.0,23784.0,6.01046493]
[1659277765107,0.80725733,23785.0,23784.0,6.01046493]
[1659277766041,0.80725733,23785.0,23784.0,7.01046493]
[1659277766281,0.80725733,23785.0,23784.0,8.01046493]
[1659277766518,0.80725733,23785.0,23784.0,9.01046493]
[1659277766762,0.80725733,23785.0,23784.0,8.79362033]
[1659277767890,0.85725733,23785.0,23784.0,8.79362033]
[1659277768105,1.15725733,23785.0,23784.0,8.79362033]
[1659277768325,0.80725733,23785.0,23784.0,8.79362033]
[1659277768807,0.40725733,23785.0,23784.0,8.79362033]
[1659277769243,0.7477,23786.0,23785.0,0.59274267]
[1659277769458,1.50495733,23786.0,23785.0,1.59274267]
[1659277769677,1.50495733,23786.0,23785.0,2.59274267]
[1659277769678,1.15495733,23786.0,23785.0,2.59274267]
[1659277770156,1.15495733,23786.0,23785.0,2.62741583]
[1659277770379,0.40725733,23786.0,23785.0,2.61681415]
[1659277770604,0.40725733,23786.0,23785.0,2.6678482]
[1659277770831,6.011e-05,23788.0,23785.0,2.66131415]
[1659277770832,0.40725733,23787.0,23785.0,2.66131415]
[1659277771047,0.39725733,23787.0,23785.0,2.66476117]
[1659277771349,6.011e-05,23788.0,23785.0,2.62026117]
[1659277771561,0.40725733,23786.0,23785.0,2.62026117]
[1659277772008,0.40725733,23786.0,23785.0,2.62376115]
[1659277772225,0.40725733,23786.0,23785.0,2.65843431]
[1659277772730,0.40725733,23786.0,23785.0,2.62376115]
[1659277773409,0.40731744,23788.0,23785.0,2.65843431]
[1659277773634,0.40731744,23788.0,23786.0,0.05]
[1659277773872,0.45731744,23788.0,23785.0,2.62376115]
[1659277774094,0.80725733,23787.0,23785.0,2.59968967]
[1659277774334,0.40725733,23786.0,23785.0,2.59968967]
[1659277774547,0.40225733,23786.0,23785.0,2.63436283]
[1659277774791,0.40725733,23787.0,23785.0,2.65843431]
[1659277775042,0.40731744,23788.0,23785.0,2.65843431]
[1659277775280,0.40731744,23788.0,23787.0,1.0]
[1659277775517,0.40731744,23788.0,23787.0,1.02407148]
[1659277775736,6.011e-05,23788.0,23787.0,1.02407148]
[1659277775964,6.011e-05,23788.0,23787.0,1.0]
[1659277776187,6.011e-05,23788.0,23787.0,1.02407148]
[1659277776474,6.011e-05,23788.0,23787.0,1.32407148]
[1659277776704,6.011e-05,23788.0,23787.0,1.02761447]
[1659277777377,6.011e-05,23788.0,23787.0,2.02761447]
[1659277778115,6.011e-05,23788.0,23787.0,2.02407148]
[1659277778578,6.011e-05,23788.0,23787.0,2.05807148]
[1659277778795,0.75,23793.0,23787.0,2.09274464]
[1659277778796,0.4,23793.0,23787.0,2.09274464]
[1659277779033,1.292,23794.0,23788.0,0.3]
[1659277779034,0.00018214,23792.0,23788.0,0.3]
[1659277779275,0.00018214,23792.0,23791.0,0.89667148]
[1659277779495,0.00018214,23792.0,23791.0,1.15175733]
[1659277779727,0.0031,23800.0,23791.0,1.51050197]
[1659277779963,0.0031,23800.0,23794.0,0.02407148]
[1659277779964,0.41035733,23800.0,23794.0,0.02407148]
[1659277780261,0.4,23797.0,23794.0,0.02407148]
[1659277780491,0.71089533,23796.0,23790.0,0.4281]
[1659277780746,0.4,23800.0,23790.0,0.85942881]
[1659277780976,0.40725733,23795.0,23792.0,0.02407148]
[1659277781216,0.4,23793.0,23789.0,0.02407148]
[1659277781437,0.85725733,23793.0,23789.0,0.02407148]
[1659277782538,0.85725733,23793.0,23789.0,0.10107148]
[1659277782795,0.40732776,23792.0,23789.0,0.077]
[1659277783024,0.3944,23791.0,23789.0,0.127]
[1659277783240,0.3944,23791.0,23789.0,0.077]
[1659277783241,0.45,23790.0,23789.0,0.077]
[1659277783460,1.30725733,23790.0,23789.0,0.077]
[1659277783680,1.30725733,23790.0,23788.0,3.0]
[1659277783681,1.80431792,23789.0,23788.0,2.8133]
[1659277783914,2.34127525,23789.0,23788.0,2.3557]
[1659277784432,2.94491325,23789.0,23788.0,1.3564]
[1659277784649,2.72027525,23789.0,23788.0,1.3564]
[1659277785821,2.64127525,23789.0,23788.0,1.3564]
[1659277786493,2.72027525,23789.0,23788.0,1.3564]
[1659277786808,2.76418709,23789.0,23788.0,1.3564]
[1659277787498,3.06782509,23789.0,23788.0,0.26340222]
[1659277787735,1.4944,23788.0,23787.0,2.00046834]
[1659277787969,1.4944,23788.0,23787.0,1.58741834]
[1659277787970,2.93698398,23788.0,23787.0,1.58741834]
[1659277788190,1.7477,23786.0,23785.0,1.46532637]
[1659277788420,2.59130466,23786.0,23785.0,1.46532637]
[1659277788641,2.33766666,23786.0,23785.0,1.46532637]
[1659277789338,2.28766666,23786.0,23785.0,1.46532637]
[1659277789798,1.48766666,23786.0,23785.0,1.46532637]
[1659277790034,1.44007572,23786.0,23785.0,1.46532637]
[1659277790473,1.91907572,23786.0,23785.0,1.46532637]
[1659277791385,2.26907572,23786.0,23785.0,1.46532637]
[1659277791583,2.36907572,23786.0,23785.0,1.46532637]
[1659277791797,2.29007572,23786.0,23785.0,1.006947]
[1659277792288,2.35030202,23786.0,23785.0,1.006947]
[1659277792509,2.42930202,23786.0,23785.0,1.006947]
[1659277792942,2.55900202,23786.0,23785.0,1.006947]
[1659277793206,2.55853375,23786.0,23785.0,1.006947]
[1659277793651,2.42883375,23786.0,23785.0,1.03101848]
[1659277793893,1.53719027,23786.0,23785.0,1.03101848]
[1659277794122,0.70824572,23786.0,23785.0,1.03101848]
[1659277794562,0.78724572,23786.0,23785.0,1.03101848]
[1659277795959,0.70824572,23786.0,23785.0,1.03101848]
[1659277796620,0.78724572,23786.0,23785.0,1.03101848]
[1659277798217,0.83724572,23786.0,23785.0,1.03101848]
[1659277798494,0.83724572,23786.0,23785.0,0.03101848]
[1659277798495,0.70824572,23786.0,23785.0,0.03101848]
[1659277798732,0.70824572,23786.0,23785.0,0.08101848]
[1659277798733,0.68362639,23786.0,23785.0,0.08101848]
[1659277799902,0.37998839,23786.0,23785.0,0.11257848]
[1659277800149,0.30098839,23786.0,23785.0,0.51983581]
[1659277800383,0.30098839,23786.0,23785.0,0.49576433]
[1659277800610,0.37998839,23786.0,23785.0,0.11257848]
[1659277800853,0.37998839,23786.0,23785.0,0.03101848]
[1659277801087,0.37998839,23786.0,23785.0,0.06569164]
[1659277801325,0.37998839,23786.0,23785.0,0.03101848]
[1659277801788,0.60462639,23786.0,23785.0,0.03101848]
[1659277802234,1.01188372,23786.0,23785.0,0.03101848]
[1659277802491,1.09088372,23786.0,23785.0,0.03101848]
[1659277803197,1.8952425,23786.0,23785.0,0.03101848]
[1659277803408,2.44463939,23786.0,23785.0,0.03101848]
[1659277803669,2.44463939,23786.0,23775.0,0.2856]
[1659277803670,0.4444,23784.0,23776.0,0.03158]
[1659277803892,0.71089533,23783.0,23774.0,0.03158]
[1659277804126,0.40725733,23782.0,23774.0,0.43883733]
[1659277804366,0.40725733,23783.0,23775.0,0.40725733]
[1659277804592,0.48525733,23783.0,23776.0,0.03158]
[1659277804866,0.48525733,23783.0,23776.0,0.93883733]
[1659277805315,0.48525733,23783.0,23776.0,0.43883733]
[1659277805539,0.303638,23782.0,23776.0,0.40725733]
[1659277805769,0.48525733,23783.0,23777.0,0.03157]
[1659277805992,0.303638,23782.0,23777.0,0.03157]
[1659277806270,0.303638,23782.0,23776.0,0.43883733]
[1659277806483,0.40725733,23782.0,23776.0,0.03158]
[1659277806943,0.85165733,23782.0,23775.0,0.30865298]
[1659277807159,1.01089533,23781.0,23773.0,0.30865298]
[1659277807396,1.01089533,23781.0,23773.0,0.35865298]
[1659277807397,0.71089533,23780.0,23773.0,0.35865298]
[1659277807644,0.71089533,23779.0,23773.0,0.35865298]
[1659277807870,0.87613,23785.0,23774.0,0.43883733]
[1659277808098,0.30098839,23786.0,23782.0,0.05]
[1659277808337,0.303638,23785.0,23782.0,0.05]
[1659277808570,0.303638,23784.0,23782.0,0.05]
[1659277808843,0.798038,23783.0,23775.0,0.03158]
[1659277809071,0.798038,23783.0,23772.0,0.30865298]
[1659277809072,0.71089533,23782.0,23773.0,0.03158]
[1659277809308,0.4944,23783.0,23772.0,0.30865298]
[1659277809309,0.40725733,23781.0,23774.0,0.40725733]
[1659277809538,0.40725733,23782.0,23774.0,0.45725733]
[1659277809749,0.40725733,23782.0,23775.0,0.43883733]
[1659277809976,0.303638,23781.0,23775.0,0.43883733]
[1659277810233,0.40725733,23782.0,23775.0,0.40725733]
[1659277810460,0.303638,23781.0,23775.0,0.40725733]
[1659277810698,0.40725733,23781.0,23774.0,0.43883733]
[1659277811866,0.303638,23780.0,23774.0,0.43883733]
[1659277812093,0.40725733,23781.0,23774.0,0.43883733]
[1659277812313,0.303638,23780.0,23774.0,0.43883733]
[1659277812560,0.303638,23780.0,23774.0,0.40725733]
[1659277812561,0.079,23780.0,23774.0,0.40725733]
[1659277812864,0.303638,23779.0,23774.0,0.40725733]
[1659277813091,0.40725733,23779.0,23772.0,0.30865298]
[1659277813305,0.40725733,23779.0,23772.0,0.71591031]
[1659277813753,0.40725733,23779.0,23773.0,0.34023298]
[1659277813981,0.40725733,23779.0,23773.0,0.30865298]
[1659277814411,0.40725733,23779.0,23776.0,0.0067489]
[1659277814652,0.303638,23778.0,23776.0,0.0067489]
[1659277814883,0.303638,23777.0,23776.0,0.0067489]
[1659277815096,0.48625733,23779.0,23776.0,0.0067489]
[1659277815323,0.303638,23778.0,23776.0,0.0067489]
[1659277815557,0.079,23779.0,23776.0,0.0067489]
[1659277815802,0.303638,23778.0,23776.0,0.0067489]
[1659277816026,0.753638,23777.0,23776.0,0.0067489]
[1659277816497,0.353638,23777.0,23776.0,0.0067489]
[1659277816934,0.303638,23777.0,23776.0,0.0067489]
[1659277818527,0.382638,23777.0,23776.0,0.0067489]
[1659277819900,0.303638,23777.0,23776.0,0.0067489]
[1659277820396,0.13,23781.0,23780.0,0.05]
[1659277820637,0.13,23781.0,23780.0,0.55]
[1659277820913,0.125,23781.0,23780.0,0.05]
[1659277821152,0.125,23781.0,23777.0,0.1281]
[1659277821401,0.125,23781.0,23780.0,0.0067489]
[1659277822344,0.1273395,23781.0,23780.0,0.10860178]
[1659277822572,0.1973395,23781.0,23780.0,0.10860178]
[1659277822809,0.1973395,23781.0,23780.0,0.07392862]
[1659277823079,0.1973395,23781.0,23780.0,0.11842862]
[1659277823310,0.1973395,23781.0,23780.0,0.15310178]
[1659277823780,0.1973395,23781.0,23780.0,0.05310178]
[1659277824059,0.1973395,23781.0,23780.0,0.35673978]
[1659277824287,0.1973395,23781.0,23780.0,0.82000794]
[1659277824288,0.1273395,23781.0,23780.0,0.82000794]
[1659277824500,0.2073395,23781.0,23780.0,0.82000794]
[1659277825219,0.2073395,23781.0,23780.0,0.42415681]
[1659277825463,0.2073395,23781.0,23780.0,0.46915718]
[1659277825744,0.2073395,23781.0,23780.0,0.42465718]
[1659277825974,0.1273395,23781.0,23780.0,0.42775896]
[1659277826208,0.1223395,23781.0,23780.0,0.42775896]
[1659277826642,0.1293395,23781.0,23780.0,0.49465718]
[1659277826882,0.1293395,23781.0,23780.0,0.49775896]
[1659277827307,0.1293395,23781.0,23780.0,0.49415681]
[1659277827752,0.1293395,23781.0,23780.0,0.49775896]
[1659277827977,0.1223395,23781.0,23780.0,0.42775896]
[1659277828470,0.2013395,23781.0,23780.0,0.42775896]
[1659277829831,0.1223395,23781.0,23780.0,0.42775896]
[1659277830048,0.0023395,23781.0,23780.0,0.42775896]
[1659277830486,0.0183395,23781.0,23780.0,0.54825896]
[1659277831919,9.5e-06,23781.0,23780.0,1.74795012]
[1659277832146,0.30098839,23786.0,23780.0,1.70352012]
[1659277832362,0.30098839,23786.0,23785.0,1.2281]
[1659277832585,0.23348839,23786.0,23785.0,2.44209711]
[1659277832815,0.0252,23798.0,23786.0,0.05]
[1659277833042,0.40725733,23798.0,23788.0,0.1281]
[1659277833319,0.40725733,23798.0,23789.0,0.74408813]
[1659277833546,6.386e-05,23793.0,23790.0,0.40725733]
[1659277833774,6.386e-05,23793.0,23792.0,0.75]
[1659277834226,0.14611311,23795.0,23792.0,0.75]
[1659277834440,0.03,23793.0,23792.0,0.177]
[1659277835128,0.03,23793.0,23792.0,0.58425733]
[1659277835594,0.03,23793.0,23792.0,0.58748742]
[1659277835852,0.17641614,23795.0,23792.0,0.51048742]
[1659277836071,0.20671917,23795.0,23792.0,0.51048742]
[1659277836302,0.2370222,23795.0,23792.0,0.51048742]
[1659277836514,0.303638,23794.0,23792.0,0.56848742]
[1659277836747,0.2410222,23795.0,23792.0,0.56848742]
[1659277836965,0.03157138,23794.0,23792.0,0.06123009]
[1659277837239,0.33520938,23794.0,23792.0,0.06123009]
[1659277837684,0.2410222,23795.0,23792.0,0.06443735]
[1659277837926,0.2370222,23795.0,23792.0,0.00643735]
[1659277838148,0.303638,23794.0,23792.0,0.00643735]
[1659277838426,0.2370222,23795.0,23792.0,0.01938083]
[1659277838668,0.303638,23794.0,23792.0,0.01938083]
[1659277838894,0.2930222,23795.0,23792.0,0.01938083]
[1659277839115,0.303638,23794.0,23792.0,0.01617357]
[1659277839339,0.303638,23793.0,23792.0,0.01617357]
[1659277839593,0.303638,23793.0,23792.0,0.01938083]
[1659277839805,0.2930222,23795.0,23792.0,0.01938083]
[1659277839806,0.12007043,23794.0,23792.0,0.01938083]
[1659277840260,0.42370843,23794.0,23792.0,0.01938083]
[1659277840478,0.303638,23793.0,23792.0,0.09138083]
[1659277840711,0.131,23794.0,23792.0,0.09138083]
[1659277840964,0.46620938,23794.0,23792.0,0.08817357]
[1659277841199,0.131,23794.0,23793.0,0.00310178]
[1659277841432,0.13106387,23794.0,23793.0,0.00310178]
[1659277841866,0.12006387,23794.0,23793.0,0.04760178]
[1659277842085,0.12,23794.0,23793.0,0.0476879]
[1659277842537,0.145,23794.0,23793.0,0.077]
[1659277842762,0.448638,23794.0,23793.0,0.077]
[1659277842978,0.145,23794.0,23793.0,0.08361783]
[1659277843207,0.145,23794.0,23793.0,0.49078904]
[1659277843496,0.145,23794.0,23793.0,0.79078904]
[1659277843689,0.145,23794.0,23793.0,0.79752882]
[1659277843918,0.12,23794.0,23793.0,0.42011952]
[1659277844393,0.12,23794.0,23793.0,0.47011952]
[1659277844629,0.12,23794.0,23793.0,1.15954674]
[1659277844894,0.12,23794.0,23793.0,0.85590874]
[1659277845120,0.12,23794.0,23793.0,1.16118374]
[1659277845363,0.12,23794.0,23793.0,0.50239452]
[1659277845809,0.12,23794.0,23793.0,0.42539452]
[1659277846521,0.19,23794.0,23793.0,0.42539452]
[1659277846742,0.185,23794.0,23793.0,0.42539452]
[1659277847226,0.185,23794.0,23793.0,0.73066532]
[1659277847446,0.185,23794.0,23793.0,0.77539452]
[1659277847673,0.185,23794.0,23793.0,0.72539452]
[1659277847896,0.115,23794.0,23793.0,0.42539452]
[1659277848135,0.115,23794.0,23793.0,0.78306618]
[1659277848362,0.115,23794.0,23793.0,0.73306618]
[1659277848643,0.115,23794.0,23793.0,0.51106618]
[1659277848832,0.115,23794.0,23793.0,0.81106618]
[1659277849096,0.115,23794.0,23793.0,0.5079644]
[1659277849330,0.115,23794.0,23793.0,0.10070707]
[1659277849592,0.413638,23794.0,23793.0,0.10070707]
[1659277849824,0.11,23794.0,23793.0,0.43306618]
[1659277850508,0.189,23794.0,23793.0,0.43306618]
[1659277851250,0.189,23794.0,23793.0,0.43252792]
[1659277851478,0.189,23794.0,23793.0,0.4411962]
[1659277851916,0.11,23794.0,23793.0,0.4411962]
[1659277852154,0.2370222,23795.0,23793.0,0.4411962]
[1659277852381,0.2370222,23795.0,23794.0,0.40725733]
[1659277854419,0.2930222,23795.0,23794.0,0.40725733]
[1659277855889,0.2370222,23795.0,23794.0,0.40725733]
[1659277856562,0.2580222,23795.0,23794.0,0.48425733]
[1659277856706,0.2580222,23795.0,23794.0,0.98425733]
[1659277857786,0.2370222,23795.0,23794.0,0.90725733]
[1659277858206,0.2370222,23795.0,23794.0,1.20725733]
[1659277858433,0.2370222,23795.0,23794.0,0.98625733]
[1659277859766,0.2370222,23795.0,23794.0,0.90725733]
[1659277860229,0.2370222,23795.0,23794.0,0.40725733]
[1659277860451,0.23957523,23795.0,23794.0,0.48625733]
[1659277861731,0.23957523,23795.0,23794.0,0.40725733]
[1659277862146,0.83047243,23795.0,23794.0,0.40725733]
[1659277862387,0.94047243,23795.0,23794.0,0.40725733]
[1659277862589,0.97204381,23795.0,23794.0,0.48625733]
[1659277862809,0.97204381,23795.0,23794.0,0.079]
[1659277863039,1.27568181,23795.0,23794.0,0.079]
[1659277863261,1.24411043,23795.0,23794.0,0.48625733]
[1659277863481,0.94047243,23795.0,23794.0,0.48625733]
[1659277864262,0.94047243,23795.0,23793.0,0.02217256]
[1659277864479,0.05,23794.0,23793.0,0.02217256]
[1659277865024,0.353638,23794.0,23793.0,0.02217256]
[1659277865711,0.38520938,23794.0,23793.0,0.02217256]
[1659277865953,0.38520938,23794.0,23793.0,0.02205431]
[1659277866395,0.303638,23794.0,23793.0,0.42931164]
[1659277866639,0.303638,23794.0,23793.0,1.82931164]
[1659277866640,0.078,23794.0,23793.0,1.82931164]
[1659277867073,0.078,23794.0,23793.0,1.77931164]
[1659277867287,0.078,23794.0,23793.0,2.43605142]
[1659277867531,0.078,23794.0,23793.0,1.78241342]
[1659277867763,0.078,23794.0,23793.0,2.0947197]
[1659277868006,0.94047243,23795.0,23793.0,1.7910817]
[1659277868236,0.94047243,23795.0,23794.0,0.70725733]
[1659277868454,0.94047243,23795.0,23794.0,0.80725733]
[1659277869369,0.94047243,23795.0,23794.0,1.10725733]
[1659277869573,0.94047243,23795.0,23794.0,0.80725733]
[1659277870288,0.94047243,23795.0,23794.0,1.10725733]
[1659277870498,0.94047243,23795.0,23794.0,0.88525733]
[1659277871375,0.99040356,23795.0,23794.0,0.88525733]
[1659277871791,0.99040356,23795.0,23794.0,0.80725733]
[1659277872435,0.99040356,23795.0,23794.0,1.18625733]
[1659277872885,0.99040356,23795.0,23794.0,0.88625733]
[1659277873115,0.99040356,23795.0,23794.0,1.23625733]
[1659277873333,0.99040356,23795.0,23794.0,0.88625733]
[1659277873551,0.99040356,23795.0,23794.0,0.88900689]
[1659277873771,0.99040356,23795.0,23794.0,0.81000689]
[1659277874452,0.99040356,23795.0,23794.0,0.88900689]
[1659277874897,0.99040356,23795.0,23794.0,1.18900689]
[1659277875132,0.99040356,23795.0,23794.0,1.4959825]
[1659277875551,0.99040356,23795.0,23794.0,1.1923445]
[1659277876029,0.99040356,23795.0,23794.0,0.8133445]
[1659277876463,0.99040356,23795.0,23794.0,0.8923445]
[1659277877734,0.99040356,23795.0,23794.0,0.8133445]
[1659277878190,0.99040356,23795.0,23794.0,1.1633445]
[1659277878412,0.99040356,23795.0,23794.0,1.1959825]
[1659277878811,0.99040356,23795.0,23794.0,0.8959825]
[1659277879290,0.99040356,23795.0,23794.0,1.0740825]
[1659277879582,0.99040356,23795.0,23794.0,1.0240825]
[1659277879828,0.99040356,23795.0,23794.0,0.8450825]
[1659277880077,0.99040356,23795.0,23794.0,0.7169825]
[1659277880311,0.99040356,23795.0,23794.0,0.4133445]
[1659277880561,0.99040356,23795.0,23794.0,0.4923445]
[1659277880816,0.99040356,23795.0,23794.0,0.7959825]
[1659277881286,0.99040356,23795.0,23794.0,2.1459825]
[1659277881965,0.99040356,23795.0,23794.0,2.0669825]
[1659277882192,0.99040356,23795.0,23794.0,1.7633445]
[1659277882644,0.99040356,23795.0,23794.0,1.8373445]
[1659277883083,0.99040356,23795.0,23794.0,2.1409825]
[1659277883293,0.99040356,23795.0,23794.0,1.8373445]
[1659277883574,0.99040356,23795.0,23794.0,2.1409825]
[1659277884018,0.99040356,23795.0,23794.0,1.7633445]
[1659277884237,0.99040356,23795.0,23794.0,2.0669825]
[1659277884701,0.99040356,23795.0,23794.0,2.1409825]
[1659277884940,0.99040356,23795.0,23794.0,1.8373445]
[1659277885851,0.99040356,23795.0,23794.0,1.7633445]
[1659277886565,6.418e-05,23799.0,23798.0,1.15]
[1659277886811,6.418e-05,23799.0,23798.0,2.74721773]
[1659277887037,6.418e-05,23799.0,23798.0,2.39721773]
[1659277887287,0.001,23800.0,23798.0,2.39721773]
[1659277887508,0.001,23800.0,23799.0,0.81423224]
[1659277887767,0.001,23800.0,23799.0,0.86423224]
[1659277887983,0.001,23800.0,23799.0,1.16423224]
[1659277888705,0.001,23800.0,23799.0,1.24598792]
[1659277888941,0.001,23800.0,23799.0,1.24048792]
[1659277889166,0.001,23800.0,23799.0,1.29048792]
[1659277889867,0.001,23800.0,23799.0,1.21148792]
[1659277890082,0.0022,23801.0,23800.0,1.2]
[1659277890318,0.0022,23801.0,23800.0,2.39658694]
[1659277891066,0.0022,23801.0,23800.0,1.99658694]
[1659277891740,0.0022,23801.0,23800.0,2.01154241]
[1659277892204,0.0022,23801.0,23800.0,2.36154241]
[1659277892434,0.0022,23801.0,23800.0,2.41154241]
[1659277892678,0.0022,23801.0,23800.0,2.49154241]
[1659277892902,0.0022,23801.0,23800.0,2.09154241]
[1659277893141,0.0022,23801.0,23800.0,2.39154241]
[1659277893391,0.0022,23801.0,23800.0,2.49154241]
[1659277893839,0.0022,23801.0,23800.0,2.41154241]
[1659277894525,0.0022,23801.0,23800.0,2.49154241]
[1659277895931,0.1122,23801.0,23800.0,2.41154241]
[1659277896221,0.1122,23801.0,23800.0,2.47418589]
[1659277896475,0.0022,23803.0,23802.0,1.2]
[1659277896706,0.007329,23804.0,23803.0,0.200491]
[1659277896707,0.002209,23804.0,23803.0,0.200491]
[1659277896935,0.002209,23804.0,23803.0,1.55176268]
[1659277897179,0.002209,23804.0,23803.0,1.52022268]
[1659277897406,0.0032,23817.0,23805.0,0.15]
[1659277897638,0.5032,23811.0,23806.0,0.1]
[1659277897892,0.5032,23811.0,23805.0,0.00599039]
[1659277897893,0.00023761,23808.0,23807.0,0.1]
[1659277898127,0.00023761,23808.0,23807.0,0.40725733]
[1659277898365,0.14309761,23808.0,23807.0,0.40725733]
[1659277898578,0.14309761,23808.0,23807.0,0.43523347]
[1659277898806,0.14286,23808.0,23807.0,0.43523347]
[1659277899299,0.14286,23808.0,23807.0,0.42925733]
[1659277899536,0.14286,23808.0,23807.0,0.43213169]
[1659277899775,0.14286,23808.0,23807.0,0.42925733]
[1659277900009,0.14286,23808.0,23807.0,0.40725733]
[1659277900448,0.13786,23808.0,23807.0,0.41703887]
[1659277900677,0.21186,23808.0,23807.0,0.42816451]
[1659277901164,0.21186,23808.0,23807.0,0.73180251]
[1659277901398,0.074,23808.0,23807.0,0.41816451]
[1659277901611,0.074,23808.0,23807.0,0.72957437]
[1659277901877,0.23440997,23809.0,23807.0,0.41193637]
[1659277902095,0.23434195,23809.0,23808.0,0.40725733]
[1659277902613,0.28734195,23809.0,23808.0,0.40725733]
[1659277902824,0.28740997,23809.0,23808.0,0.40725733]
[1659277903283,0.26240997,23809.0,23808.0,0.71089533]
[1659277903517,0.26234195,23809.0,23808.0,0.71089533]
[1659277903741,0.26234195,23809.0,23808.0,0.7613851]
[1659277903982,0.20934195,23809.0,23808.0,0.7613851]
[1659277904213,0.20934195,23809.0,23808.0,0.77952858]
[1659277904438,0.20934195,23809.0,23808.0,1.12402858]
[1659277904663,0.20934195,23809.0,23808.0,0.77978744]
[1659277904919,0.20934195,23809.0,23808.0,0.73528744]
[1659277905604,0.20934195,23809.0,23808.0,0.77978744]
[1659277905824,0.20934195,23809.0,23808.0,1.06578744]
[1659277906514,0.28234195,23809.0,23808.0,1.12578744]
[1659277906747,0.28234195,23809.0,23808.0,1.13128744]
[1659277906967,0.28234195,23809.0,23808.0,0.73128744]
[1659277907198,0.28234195,23809.0,23808.0,0.77578744]
[1659277907909,0.20934195,23809.0,23808.0,0.76578744]
[1659277908136,0.20934195,23809.0,23808.0,0.87578744]
[1659277908637,0.20934195,23809.0,23808.0,1.19678744]
[1659277908862,0.20934195,23809.0,23808.0,1.15228744]
[1659277909775,0.20934195,23809.0,23808.0,0.85228744]
[1659277909999,0.20934195,23809.0,23808.0,0.83128744]
[1659277910306,0.20934195,23809.0,23808.0,0.87578744]
[1659277910518,0.20934195,23809.0,23808.0,1.20628744]
[1659277910757,0.20934195,23809.0,23808.0,1.15628744]
[1659277910990,0.20934195,23809.0,23808.0,0.88852939]
[1659277911453,0.20934195,23809.0,23808.0,0.85628744]
[1659277911676,0.25927308,23809.0,23808.0,0.85628744]
[1659277911892,0.25927308,23809.0,23808.0,0.83128744]
[1659277912614,0.33627308,23809.0,23808.0,0.85628744]
[1659277913054,0.33846661,23809.0,23808.0,0.85628744]
[1659277914448,0.26146661,23809.0,23808.0,0.83128744]
[1659277914681,0.26146661,23809.0,23808.0,0.85628744]
[1659277914682,0.33846661,23809.0,23808.0,0.85628744]
[1659277915641,0.33846661,23809.0,23808.0,2.20628744]
[1659277915860,0.26146661,23809.0,23808.0,2.18128744]
[1659277916536,0.33846661,23809.0,23808.0,2.20628744]
[1659277916753,0.33846661,23809.0,23808.0,2.20962309]
[1659277916969,0.33846661,23809.0,23808.0,1.90598509]
[1659277917658,0.33846661,23809.0,23808.0,2.50962309]
[1659277917916,0.33846661,23809.0,23808.0,2.53462309]
[1659277917917,0.26146661,23809.0,23808.0,2.53462309]
[1659277918347,0.26146661,23809.0,23808.0,2.18462309]
[1659277918567,0.55839799,23809.0,23808.0,2.21762309]
[1659277918798,0.52682661,23809.0,23808.0,2.21762309]
[1659277919029,0.52682661,23809.0,23808.0,1.91398509]
[1659277919290,0.48232661,23809.0,23808.0,1.91398509]
[1659277919512,0.48232661,23809.0,23808.0,2.22629137]
[1659277919953,0.33946661,23809.0,23808.0,2.22629137]
[1659277920423,0.26146661,23809.0,23808.0,1.88965337]
[1659277920656,0.26146661,23809.0,23808.0,2.26129137]
[1659277920868,0.40432661,23809.0,23808.0,2.26129137]
[1659277921096,0.44882661,23809.0,23808.0,2.25262309]
[1659277921334,0.44882661,23809.0,23808.0,1.94898509]
[1659277921845,0.44882661,23809.0,23808.0,1.95245494]
[1659277922066,0.44882661,23809.0,23808.0,1.88098509]
[1659277922519,0.44882661,23809.0,23808.0,1.94898509]
[1659277922755,0.44882661,23809.0,23808.0,1.95245494]
[1659277922988,0.40432661,23809.0,23808.0,1.94898509]
[1659277923219,0.26146661,23809.0,23808.0,1.94898509]
[1659277923673,0.26146661,23809.0,23808.0,1.95245832]
[1659277923892,0.26146661,23809.0,23808.0,1.88098509]
[1659277924596,0.26146661,23809.0,23808.0,1.95698509]
[1659277925048,0.26146661,23809.0,23808.0,1.95258275]
[1659277925285,0.44882661,23809.0,23808.0,1.95258275]
[1659277925803,0.44882661,23809.0,23808.0,1.54532542]
[1659277925804,1.03039799,23809.0,23808.0,1.54532542]
[1659277926036,1.18403599,23809.0,23808.0,1.4658843]
[1659277926268,1.13403599,23809.0,23808.0,1.4658843]
[1659277926505,1.56403599,23809.0,23808.0,1.4658843]
[1659277927007,2.11403599,23809.0,23808.0,1.4658843]
[1659277927237,2.52129332,23809.0,23808.0,0.18644035]
[1659277927465,1.67129332,23809.0,23808.0,0.18644035]
[1659277927685,1.72129332,23809.0,23808.0,0.18644035]
[1659277927943,2.14129332,23809.0,23808.0,0.18644035]
[1659277928173,1.24129332,23809.0,23808.0,0.18644035]
[1659277928615,1.32029332,23809.0,23808.0,0.18644035]
[1659277928843,1.37029332,23809.0,23808.0,0.18644035]
[1659277929063,1.42029332,23809.0,23808.0,0.18644035]
[1659277929283,1.67029332,23809.0,23808.0,0.29644035]
[1659277929785,1.64129332,23809.0,23808.0,0.29644035]
[1659277930457,1.59129332,23809.0,23808.0,0.29644035]
[1659277930681,1.27579332,23809.0,23808.0,0.18644035]
[1659277930942,0.64609151,23809.0,23808.0,0.18644035]
[1659277931379,0.59609151,23809.0,23808.0,0.18644035]
[1659277931841,0.51709151,23809.0,23808.0,0.18644035]
[1659277932056,0.52106531,23809.0,23808.0,0.18644035]
[1659277932522,0.60006531,23809.0,23808.0,0.18954213]
[1659277932752,0.60006531,23809.0,23808.0,0.90043746]
[1659277932753,0.29642731,23809.0,23808.0,0.90043746]
[1659277932993,0.29642731,23809.0,23808.0,1.20043746]
[1659277933200,0.29642731,23809.0,23808.0,1.21308094]
[1659277933451,0.29642731,23809.0,23808.0,1.20043746]
[1659277933909,0.21742731,23809.0,23808.0,0.90043746]
[1659277934143,0.21742731,23809.0,23808.0,0.89733568]
[1659277934371,0.21742731,23809.0,23808.0,0.59369768]
[1659277934660,0.28842731,23809.0,23808.0,0.90433568]
[1659277934891,0.28842731,23809.0,23808.0,0.60069768]
[1659277935134,0.28644041,23809.0,23808.0,0.60069768]
[1659277935378,0.28644041,23809.0,23808.0,0.60379946]
[1659277935643,0.28644041,23809.0,23808.0,0.90743746]
[1659277935888,0.21544041,23809.0,23808.0,0.90043746]
[1659277936329,0.21544041,23809.0,23808.0,0.59679946]
[1659277936559,0.28644041,23809.0,23808.0,0.90743746]
[1659277936781,0.28644041,23809.0,23808.0,0.60379946]